lending/lending_fUSD_20250808
["ID","MTS","AMOUNT","RATE_DAILY","PERIOD"]
[377951709,1754626252677,-639.19,0.00019161,2]
[377951710,1754626252687,-400.0,0.00019161,2]
[377951711,1754626252696,-400.0,0.00019161,2]
[377951712,1754626252705,-400.0,0.00019161,2]
[377951713,1754626252715,-400.0,0.00019161,2]
[377951714,1754626252725,-516.92,0.00019161,2]
[377951715,1754626252734,-595.18,0.00019161,2]
[377951716,1754626252743,-1035.95,0.00019161,2]
[377951717,1754626252753,-400.0,0.00019161,2]
[377951718,1754626252764,-779.19,0.00019161,2]
[377951719,1754626252773,-400.0,0.00019161,2]
[377951720,1754626252783,-400.0,0.00019161,2]
[377951721,1754626252793,-400.0,0.00019161,2]
[377951722,1754626252802,-457.08610443,0.00019161,2]
[377951723,1754626252812,-1327.47,0.00019161,2]
[377951724,1754626252821,-400.0,0.00019161,2]
[377951725,1754626252831,-984.12,0.00019161,2]
[377951726,1754626252841,-400.0,0.00019161,2]
[377951727,1754626252850,-400.0,0.00019161,2]
[377951728,1754626252860,-667.27,0.00019161,2]
[377951729,1754626252870,-400.0,0.00019161,2]
[377951730,1754626252879,-400.0,0.00019161,2]
[377951731,1754626252888,-656.52,0.00019161,2]
[377951732,1754626252900,-413.21,0.00019161,2]
[377951733,1754626252913,-400.0,0.00019161,2]
[377951734,1754626252931,-400.0,0.00019161,2]
[377951735,1754626252941,-611.55,0.00019161,2]
[377951736,1754626252953,-619.46,0.00019161,2]
[377951737,1754626252962,-1041.04,0.00019161,2]
[377951738,1754626252971,-927.35,0.00019161,2]
[377951739,1754626252982,-400.0,0.00019161,2]
[377951740,1754626252992,-642.29,0.00019161,2]
[377951741,1754626253001,-450.11,0.00019161,2]
[377951742,1754626253011,-400.0,0.00019161,2]
[377951743,1754626253020,-400.0,0.00019161,2]
[377951744,1754626253030,-400.0,0.00019161,2]
[377951745,1754626253039,-400.0,0.00019161,2]
[377951746,1754626253049,-453.67511297,0.00019161,2]
[377951747,1754626253058,-637.14,0.00019161,2]
[377951748,1754626253068,-400.0,0.00019161,2]
[377951749,1754626253078,-400.0,0.00019161,2]
[377951750,1754626253088,-400.0,0.00019161,2]
[377951751,1754626253097,-400.0,0.00019161,2]
[377951752,1754626253107,-493.46,0.00019161,2]
[377951753,1754626253117,-400.0,0.00019161,2]
[377951754,1754626253126,-400.0,0.00019161,2]
[377951755,1754626253135,-429.69,0.00019161,2]
[377951756,1754626253145,-421.71,0.00019161,2]
[377951757,1754626253155,-517.66,0.00019161,2]
[377951758,1754626253165,-400.0,0.00019161,2]
[377951759,1754626253175,-400.0,0.00019161,2]
[377951760,1754626253184,-465.15,0.00019161,2]
[377951761,1754626253193,-400.0,0.00019161,2]
[377951762,1754626253203,-678.98,0.00019161,2]
[377951763,1754626253212,-1384.81,0.00019161,2]
[377951764,1754626253222,-400.0,0.00019161,2]
[377951765,1754626253231,-996.67,0.00019161,2]
[377951766,1754626253241,-571.51,0.00019161,2]
[377951767,1754626253251,-400.0,0.00019161,2]
[377951768,1754626253261,-722.09,0.00019161,2]
[377951769,1754626253270,-400.0,0.00019161,2]
[377951770,1754626253280,-400.0,0.00019161,2]
[377951771,1754626253289,-593.69,0.00019161,2]
[377951772,1754626253299,-400.0,0.00019161,2]
[377951773,1754626253308,-1728.68,0.00019161,2]
[377951774,1754626253317,-400.0,0.00019161,2]
[377951775,1754626253327,-400.0,0.00019161,2]
[377951776,1754626253337,-715.63,0.00019161,2]
[377951777,1754626253346,-400.0,0.00019161,2]
[377951778,1754626253356,-400.0,0.00019161,2]
[377951779,1754626253365,-400.0,0.00019161,2]
[377951780,1754626253374,-339.86529074,0.00019161,2]
[377951781,1754626253384,-641.91,0.00019161,2]
[377951782,1754626253394,-891.24,0.00019161,2]
[377951783,1754626253403,-400.0,0.00019161,2]
[377951784,1754626253413,-406.1,0.00019161,2]
[377951785,1754626253422,-934.12,0.00019161,2]
[377951786,1754626253432,-369.09480311,0.00019161,2]
[377951787,1754626253441,-934.46,0.00019161,2]
[377951788,1754626253611,-400.0,0.00019161,2]
[377951789,1754626253620,-400.0,0.00019161,2]
[377951790,1754626253629,-670.4,0.00019161,2]
[377951791,1754626253639,-674.87,0.00019161,2]
[377951792,1754626253648,-1307.54,0.00019161,2]
[377951793,1754626253658,-400.0,0.00019161,2]
[377951794,1754626253667,-804.47,0.00019161,2]
[377951795,1754626253679,-400.0,0.00019161,2]
[377951796,1754626253688,-510.06,0.00019161,2]
[377951797,1754626253697,-937.03,0.00019161,2]
[377951798,1754626253706,-400.0,0.00019161,2]
[377951799,1754626253715,-812.93,0.00019161,2]
[377951800,1754626253725,-400.0,0.00019161,2]
[377951801,1754626253734,-861.49,0.00019161,2]
[377951802,1754626253744,-400.0,0.00019161,2]
[377951803,1754626253754,-552.22,0.00019161,2]
[377951804,1754626253763,-400.0,0.00019161,2]
[377951805,1754626253773,-486.11,0.00019161,2]
[377951806,1754626253782,-1786.72,0.00019161,2]
[377951807,1754626253791,-606.4,0.00019161,2]
[377951808,1754626253800,-810.48,0.00019161,2]
[377951809,1754626253810,-400.0,0.00019161,2]
[377951810,1754626253820,-809.54,0.00019161,2]
[377951811,1754626253829,-911.31,0.00019161,2]
[377951812,1754626253839,-437.41,0.00019161,2]
[377951813,1754626253849,-992.26,0.00019161,2]
[377951814,1754626253858,-934.15,0.00019161,2]
[377951815,1754626253868,-400.0,0.00019161,2]
[377951816,1754626253878,-775.57,0.00019161,2]
[377951817,1754626253887,-400.0,0.00019161,2]
[377951818,1754626253898,-451.59,0.00019161,2]
[377951819,1754626253910,-1104.9,0.00019161,2]
[377951820,1754626253920,-400.0,0.00019161,2]
[377951821,1754626253929,-400.0,0.00019161,2]
[377951822,1754626253939,-400.0,0.00019161,2]
[377951823,1754626253950,-759.22,0.00019161,2]
[377951824,1754626253960,-703.85,0.00019161,2]
[377951825,1754626253969,-670.41,0.00019161,2]
[377951826,1754626253980,-734.03,0.00019161,2]
[377951827,1754626253990,-618.57,0.00019161,2]
[377951828,1754626253999,-985.82,0.00019161,2]
[377951829,1754626254009,-582.68,0.00019161,2]
[377951830,1754626254018,-549.5,0.00019161,2]
[377951831,1754626254028,-400.0,0.00019161,2]
[377951832,1754626254037,-555.26,0.00019161,2]
[377951833,1754626254046,-1182.91,0.00019161,2]
[377951834,1754626254056,-400.0,0.00019161,2]
[377951835,1754626254065,-443.35,0.00019161,2]
[377951836,1754626254074,-836.26,0.00019161,2]
[377951837,1754626254083,-400.0,0.00019161,2]
[377951838,1754626254092,-489.93,0.00019161,2]
[377951839,1754626254101,-400.0,0.00019161,2]
[377951840,1754626254110,-986.57,0.00019161,2]
[377951841,1754626254120,-506.93,0.00019161,2]
[377951842,1754626254129,-853.89,0.00019161,2]
[377951843,1754626254138,-400.0,0.00019161,2]
[377951844,1754626254148,-477.62,0.00019161,2]
[377951845,1754626254157,-735.98,0.00019161,2]
[377951846,1754626254166,-400.0,0.00019161,2]
[377951847,1754626254175,-400.0,0.00019161,2]
[377951848,1754626254184,-400.0,0.00019161,2]
[377951849,1754626254193,-444.13,0.00019161,2]
[377951850,1754626254204,-400.0,0.00019161,2]
[377951851,1754626254213,-809.01,0.00019161,2]
[377951852,1754626254222,-409.63,0.00019161,2]
[377951853,1754626254231,-420.03,0.00019161,2]
[377951854,1754626254240,-1202.24,0.00019161,2]
[377951855,1754626254249,-1244.59,0.00019161,2]
[377951856,1754626254258,-667.42,0.00019161,2]
[377951857,1754626254268,-477.58,0.00019161,2]
[377951858,1754626254277,-536.9,0.00019161,2]
[377951859,1754626254286,-425.93,0.00019161,2]
[377951860,1754626254295,-400.19,0.00019161,2]
[377951861,1754626254304,-400.0,0.00019161,2]
[377951862,1754626254313,-1284.7,0.00019161,2]
[377951863,1754626254322,-400.0,0.00019161,2]
[377951864,1754626254331,-775.37,0.00019161,2]
[377951865,1754626254340,-400.0,0.00019161,2]
[377951866,1754626254350,-1151.55,0.00019161,2]
[377951867,1754626254359,-400.0,0.00019161,2]
[377951868,1754626254369,-400.0,0.00019161,2]
[377951869,1754626254378,-534.03,0.00019161,2]
[377951870,1754626254387,-1784.76,0.00019161,2]
[377951871,1754626254396,-538.24,0.00019161,2]
[377951872,1754626254406,-400.0,0.00019161,2]
[377951873,1754626254415,-465.41,0.00019161,2]
[377951874,1754626254424,-585.27,0.00019161,2]
[377951875,1754626254433,-400.0,0.00019161,2]
[377951876,1754626254443,-400.0,0.00019161,2]
[377951877,1754626254452,-400.0,0.00019161,2]
[377951878,1754626254461,-727.75,0.00019161,2]
[377951879,1754626254470,-814.66,0.00019161,2]
[377951880,1754626254480,-576.73,0.00019161,2]
[377951881,1754626254489,-510.17,0.00019161,2]
[377951882,1754626254498,-753.91,0.00019161,2]
[377951883,1754626254508,-400.0,0.00019161,2]
[377951884,1754626254517,-400.0,0.00019161,2]
[377951885,1754626254527,-417.82,0.00019161,2]
[377951886,1754626254537,-1488.58,0.00019161,2]
[377951887,1754626254546,-1282.89,0.00019161,2]
[377951888,1754626254555,-400.0,0.00019161,2]
[377951889,1754626254564,-400.0,0.00019161,2]
[377951890,1754626254574,-945.35,0.00019161,2]
[377951891,1754626254584,-400.0,0.00019161,2]
[377951892,1754626254593,-589.45,0.00019161,2]
[377951893,1754626254602,-413.86,0.00019161,2]
[377951894,1754626254612,-400.0,0.00019161,2]
[377951895,1754626254621,-400.0,0.00019161,2]
[377951896,1754626254631,-400.0,0.00019161,2]
[377951897,1754626254641,-1386.59,0.00019161,2]
[377951898,1754626254650,-848.67,0.00019161,2]
[377951899,1754626254659,-400.0,0.00019161,2]
[377951900,1754626254669,-400.0,0.00019161,2]
[377951901,1754626254679,-400.0,0.00019161,2]
[377951902,1754626254688,-1078.51,0.00019161,2]
[377951903,1754626254698,-1156.26,0.00019161,2]
[377951904,1754626254708,-764.62,0.00019161,2]
[377951905,1754626254718,-400.0,0.00019161,2]
[377951906,1754626254727,-497.98,0.00019161,2]
[377951907,1754626254737,-400.0,0.00019161,2]
[377951908,1754626254747,-400.0,0.00019161,2]
[377951909,1754626254756,-400.0,0.00019161,2]
[377951910,1754626254765,-853.67,0.00019161,2]
[377951911,1754626254775,-1273.55,0.00019161,2]
[377951912,1754626254785,-221.87767764,0.00019161,2]
[377951913,1754626254794,-400.0,0.00019161,2]
[377951914,1754626254804,-400.0,0.00019161,2]
[377951915,1754626254814,-1298.91,0.00019161,2]
[377951916,1754626254824,-400.0,0.00019161,2]
[377951917,1754626254834,-467.79,0.00019161,2]
[377951918,1754626254843,-400.0,0.00019161,2]
[377951919,1754626254852,-1383.74,0.00019161,2]
[377951920,1754626254862,-1126.68,0.00019161,2]
[377951921,1754626254871,-911.53,0.00019161,2]
[377951922,1754626254881,-400.0,0.00019161,2]
[377951923,1754626254890,-856.18,0.00019161,2]
[377951924,1754626254904,-874.75,0.00019161,2]
[377951925,1754626254914,-828.88,0.00019161,2]
[377951926,1754626254924,-484.52,0.00019161,2]
[377951927,1754626254933,-400.0,0.00019161,2]
[377951928,1754626254943,-400.0,0.00019161,2]
[377951929,1754626254953,-790.9,0.00019161,2]
[377951930,1754626254963,-612.6,0.00019161,2]
[377951931,1754626254972,-832.99,0.00019161,2]
[377951932,1754626254983,-1042.45,0.00019161,2]
[377951933,1754626254993,-884.96,0.00019161,2]
[377951934,1754626255003,-400.0,0.00019161,2]
[377951935,1754626255012,-400.0,0.00019161,2]
[377951936,1754626255022,-400.0,0.00019161,2]
[377951937,1754626255032,-796.87,0.00019161,2]
[377951938,1754626255041,-1229.15,0.00019161,2]
[377951939,1754626255051,-400.0,0.00019161,2]
[377951940,1754626255061,-843.04,0.00019161,2]
[377951941,1754626255070,-400.0,0.00019161,2]
[377951942,1754626255080,-994.14,0.00019161,2]
[377951943,1754626255091,-400.0,0.00019161,2]
[377951944,1754626255102,-400.0,0.00019161,2]
[377951945,1754626255112,-1122.85,0.00019161,2]
[377951946,1754626255121,-400.0,0.00019161,2]
[377951947,1754626255131,-401.13,0.00019161,2]
[377951948,1754626255140,-388.8798731,0.00019161,2]
[377951949,1754626255150,-456.89,0.00019161,2]
[377951950,1754626255159,-989.94,0.00019161,2]
[377951951,1754626255169,-385.38583826,0.00019161,2]
[377951952,1754626255178,-400.0,0.00019161,2]
[377951953,1754626255187,-711.37,0.00019161,2]
[377951954,1754626255197,-1077.94,0.00019161,2]
[377951955,1754626255207,-483.29,0.00019161,2]
[377951956,1754626255216,-737.86,0.00019161,2]
[377951957,1754626255227,-400.0,0.00019161,2]
[377951958,1754626255236,-489.42,0.00019161,2]
[377951959,1754626255245,-1186.63,0.00019161,2]
[377951960,1754626255254,-400.0,0.00019161,2]
[377951961,1754626255263,-840.07,0.00019161,2]
[377951962,1754626255274,-1405.89,0.00019161,2]
[377951963,1754626255283,-868.16,0.00019161,2]
[377951964,1754626255292,-400.0,0.00019161,2]
[377951965,1754626255302,-624.03,0.00019161,2]
[377951966,1754626255311,-583.58,0.00019161,2]
[377951967,1754626255320,-400.0,0.00019161,2]
[377951968,1754626255330,-400.0,0.00019161,2]
[377951969,1754626255339,-400.0,0.00019161,2]
[377951970,1754626255348,-726.17,0.00019161,2]
[377951971,1754626255357,-782.71,0.00019161,2]
[377951972,1754626255366,-1539.75,0.00019161,2]
[377951973,1754626255376,-666.65,0.00019161,2]
[377951974,1754626255385,-1193.78,0.00019161,2]
[377951975,1754626255394,-400.0,0.00019161,2]
[377951976,1754626255403,-871.27,0.00019161,2]
[377951977,1754626255412,-607.63,0.00019161,2]
[377951978,1754626255421,-400.0,0.00019161,2]
[377951979,1754626255431,-400.0,0.00019161,2]
[377951980,1754626255440,-400.0,0.00019161,2]
[377951981,1754626255449,-777.45,0.00019161,2]
[377951982,1754626255458,-400.0,0.00019161,2]
[377951983,1754626255467,-400.0,0.00019161,2]
[377951984,1754626255476,-400.0,0.00019161,2]
[377951985,1754626255486,-400.37,0.00019161,2]
[377951986,1754626255496,-738.12,0.00019161,2]
[377951987,1754626255505,-400.0,0.00019161,2]
[377951988,1754626255514,-427.97,0.00019161,2]
[377951989,1754626255523,-400.0,0.00019161,2]
[377951990,1754626255532,-835.79,0.00019161,2]
[377951991,1754626255541,-1120.32,0.00019161,2]
[377951992,1754626255551,-786.29,0.00019161,2]
[377951993,1754626255560,-693.04,0.00019161,2]
[377951994,1754626255569,-667.91,0.00019161,2]
[377951995,1754626255578,-400.0,0.00019161,2]
[377951996,1754626255588,-1412.23,0.00019161,2]
[377951997,1754626255598,-865.97,0.00019161,2]
[377951998,1754626255607,-400.0,0.00019161,2]
[377951999,1754626255616,-621.57,0.00019161,2]
[377952000,1754626255626,-840.55,0.00019161,2]
[377952001,1754626255635,-400.0,0.00019161,2]
[377952002,1754626255645,-304.62016995,0.00019161,2]
[377952003,1754626255654,-731.02,0.00019161,2]
[377952004,1754626255664,-737.45,0.00019161,2]
[377952005,1754626255674,-1197.49,0.00019161,2]
[377952006,1754626255686,-400.0,0.00019161,2]
[377952007,1754626255696,-400.0,0.00019161,2]
[377952008,1754626255705,-1569.41,0.00019161,2]
[377952009,1754626255714,-400.0,0.00019161,2]
[377952010,1754626255723,-400.0,0.00019161,2]
[377952011,1754626255733,-407.11,0.00019161,2]
[377952012,1754626255742,-400.0,0.00019161,2]
[377952013,1754626255752,-400.0,0.00019161,2]
[377952014,1754626255762,-400.0,0.00019161,2]
[377952015,1754626255771,-1660.13,0.00019161,2]
[377952016,1754626255780,-1352.21,0.00019161,2]
[377952017,1754626255943,-400.0,0.00019161,2]
[377952018,1754626255955,-1446.46,0.00019161,2]
[377952019,1754626255965,-722.58,0.00019161,2]
[377952020,1754626255977,-446.68,0.00019161,2]
[377952021,1754626255986,-485.66,0.00019161,2]
[377952022,1754626255996,-489.93,0.00019161,2]
[377952023,1754626256006,-400.0,0.00019161,2]
[377952024,1754626256015,-400.0,0.00019161,2]
[377952025,1754626256024,-719.36,0.00019161,2]
[377952026,1754626256034,-400.0,0.00019161,2]
[377952027,1754626256043,-1102.7,0.00019161,2]
[377952028,1754626256052,-400.0,0.00019161,2]
[377952029,1754626256062,-973.19,0.00019161,2]
[377952030,1754626256072,-860.35,0.00019161,2]
[377952031,1754626256081,-772.76,0.00019161,2]
[377952032,1754626256092,-913.18,0.00019161,2]
[377952033,1754626256101,-1201.92,0.00019161,2]
[377952034,1754626256111,-300.35443483,0.00019161,2]
[377952035,1754626256120,-684.27,0.00019161,2]
[377952036,1754626256129,-730.49,0.00019161,2]
[377952037,1754626256139,-1024.93,0.00019161,2]
[377952038,1754626256148,-400.0,0.00019161,2]
[377952039,1754626256157,-400.0,0.00019161,2]
[377952040,1754626256167,-1036.9,0.00019161,2]
[377952041,1754626256177,-400.0,0.00019161,2]
[377952042,1754626256186,-400.0,0.00019161,2]
[377952043,1754626256196,-400.0,0.00019161,2]
[377952044,1754626256206,-400.0,0.00019161,2]
[377952045,1754626256215,-1040.58,0.00019161,2]
[377952046,1754626256225,-689.6,0.00019161,2]
[377952047,1754626256235,-637.5,0.00019161,2]
[377952048,1754626256244,-400.0,0.00019161,2]
[377952049,1754626256254,-400.0,0.00019161,2]
[377952050,1754626256263,-429.29,0.00019161,2]
[377952051,1754626256273,-400.0,0.00019161,2]
[377952052,1754626256282,-400.0,0.00019161,2]
[377952053,1754626256292,-400.0,0.00019161,2]
[377952054,1754626256302,-638.34,0.00019161,2]
[377952055,1754626256311,-1201.37,0.00019161,2]
[377952056,1754626256321,-581.07,0.00019161,2]
[377952057,1754626256330,-400.0,0.00019161,2]
[377952058,1754626256341,-400.0,0.00019161,2]
[377952059,1754626256350,-530.5,0.00019161,2]
[377952060,1754626256360,-400.0,0.00019161,2]
[377952061,1754626256369,-699.28,0.00019161,2]
[377952062,1754626256379,-400.0,0.00019161,2]
[377952063,1754626256388,-620.58,0.00019161,2]
[377952064,1754626256397,-424.84,0.00019161,2]
[377952065,1754626256406,-400.0,0.00019161,2]
[377952066,1754626256415,-868.63,0.00019161,2]
[377952067,1754626256425,-458.68,0.00019161,2]
[377952068,1754626256436,-400.0,0.00019161,2]
[377952069,1754626256445,-734.73,0.00019161,2]
[377952070,1754626256454,-1098.06,0.00019161,2]
[377952071,1754626256464,-400.0,0.00019161,2]
[377952072,1754626256474,-606.6,0.00019161,2]
[377952073,1754626256483,-400.0,0.00019161,2]
[377952074,1754626256493,-713.83,0.00019161,2]
[377952075,1754626256502,-445.36,0.00019161,2]
[377952076,1754626256511,-842.46,0.00019161,2]
[377952077,1754626256521,-400.0,0.00019161,2]
[377952078,1754626256530,-400.0,0.00019161,2]
[377952079,1754626256540,-1069.68,0.00019161,2]
[377952080,1754626256550,-1033.26,0.00019161,2]
[377952081,1754626256559,-234.1,0.00019161,2]
[377952082,1754626256569,-400.0,0.00019161,2]
[377952083,1754626256578,-400.0,0.00019161,2]
[377952084,1754626256588,-888.88,0.00019161,2]
[377952085,1754626256597,-863.53,0.00019161,2]
[377952086,1754626256606,-400.0,0.00019161,2]
[377952087,1754626256616,-400.0,0.00019161,2]
[377952088,1754626256625,-400.0,0.00019161,2]
[377952089,1754626256634,-400.0,0.00019161,2]
[377952090,1754626256643,-820.1,0.00019161,2]
[377952091,1754626256652,-400.0,0.00019161,2]
[377952092,1754626256662,-400.0,0.00019161,2]
[377952093,1754626256671,-919.85,0.00019161,2]
[377952094,1754626256680,-558.83,0.00019161,2]
[377952095,1754626256689,-512.59,0.00019161,2]
[377952096,1754626256698,-400.0,0.00019161,2]
[377952097,1754626256707,-400.0,0.00019161,2]
[377952098,1754626256717,-400.0,0.00019161,2]
[377952099,1754626256727,-964.77,0.00019161,2]
[377952100,1754626256736,-1118.27,0.00019161,2]
[377952101,1754626256745,-619.72,0.00019161,2]
[377952102,1754626256754,-806.08,0.00019161,2]
[377952103,1754626256763,-743.05,0.00019161,2]
[377952104,1754626256773,-400.0,0.00019161,2]
[377952105,1754626256782,-400.0,0.00019161,2]
[377952106,1754626256791,-414.42,0.00019161,2]
[377952107,1754626256801,-400.0,0.00019161,2]
[377952108,1754626256810,-276.35108978,0.00019161,2]
[377952109,1754626256820,-685.96,0.00019161,2]
[377952110,1754626256832,-340.83136511,0.00019161,2]
[377952111,1754626256842,-400.0,0.00019161,2]
[377952112,1754626256851,-400.0,0.00019161,2]
[377952113,1754626256860,-400.0,0.00019161,2]
[377952114,1754626256869,-502.53,0.00019161,2]
[377952115,1754626256878,-898.01,0.00019161,2]
[377952116,1754626256887,-400.0,0.00019161,2]
[377952117,1754626256896,-492.83,0.00019161,2]
[377952118,1754626256911,-400.0,0.00019161,2]
[377952119,1754626256920,-400.0,0.00019161,2]
[377952120,1754626256929,-435.04,0.00019161,2]
[377952121,1754626256939,-675.7,0.00019161,2]
[377952122,1754626256950,-1507.54,0.00019161,2]
[377952123,1754626256959,-395.7964354,0.00019161,2]
[377952124,1754626256969,-400.0,0.00019161,2]
[377952125,1754626256980,-701.37,0.00019161,2]
[377952126,1754626256990,-806.84,0.00019161,2]
[377952127,1754626256999,-400.0,0.00019161,2]
[377952128,1754626257008,-531.17,0.00019161,2]
[377952129,1754626257017,-400.0,0.00019161,2]
[377952130,1754626257026,-400.0,0.00019161,2]
[377952131,1754626257036,-483.84,0.00019161,2]
[377952132,1754626257045,-400.0,0.00019161,2]
[377952133,1754626257055,-410.33,0.00019161,2]
[377952134,1754626257065,-1208.97,0.00019161,2]
[377952135,1754626257075,-765.4,0.00019161,2]
[377952136,1754626257084,-36242.52528177,0.00019162,2]
[377952137,1754626257094,-400.0,0.00019162,2]
[377952138,1754626257103,-412.8,0.00019162,2]
[377952139,1754626257113,-400.0,0.00019162,2]
[377952140,1754626257122,-400.0,0.00019162,2]
[377952141,1754626257132,-400.0,0.00019162,2]
[377952142,1754626257142,-400.0,0.00019162,2]
[377952143,1754626257151,-404.64,0.00019162,2]
[377952144,1754626257161,-400.0,0.00019162,2]
[377952145,1754626257171,-400.0,0.00019162,2]
[377952146,1754626257180,-400.0,0.00019162,2]
[377952147,1754626257190,-400.0,0.00019162,2]
[377952148,1754626257200,-400.0,0.00019162,2]
[377952149,1754626257210,-400.0,0.00019162,2]
[377952150,1754626257219,-400.0,0.00019162,2]
[377952151,1754626257228,-400.0,0.00019162,2]
[377952152,1754626257238,-478.1,0.00019162,2]
[377952153,1754626257247,-568.87,0.00019162,2]
[377952154,1754626257256,-408.96,0.00019162,2]
[377952155,1754626257266,-400.0,0.00019162,2]
[377952156,1754626257275,-535.54,0.00019162,2]
[377952157,1754626257284,-400.0,0.00019162,2]
[377952158,1754626257294,-400.0,0.00019162,2]
[377952159,1754626257303,-400.0,0.00019162,2]
[377952160,1754626257312,-570.52,0.00019162,2]
[377952161,1754626257322,-400.0,0.00019162,2]
[377952162,1754626257331,-608.45,0.00019162,2]
[377952163,1754626257341,-1928.8,0.00019162,2]
[377952164,1754626257350,-1191.19,0.00019162,2]
[377952165,1754626257360,-1627.19,0.00019162,2]
[377952166,1754626257369,-1006.47,0.00019162,2]
[377952167,1754626257378,-971.98,0.00019162,2]
[377952168,1754626257388,-1149.78,0.00019162,2]
[377952169,1754626257397,-1322.25,0.00019162,2]
[377952170,1754626257406,-1522.96,0.00019162,2]
[377952171,1754626257415,-1338.99,0.00019162,2]
[377952172,1754626257425,-1124.29,0.00019162,2]
[377952173,1754626257434,-1038.27,0.00019162,2]
[377952174,1754626257444,-1082.11,0.00019162,2]
[377952175,1754626257453,-3170.99,0.00019162,2]
[377952176,1754626257463,-517.21,0.00019162,2]
[377952177,1754626257472,-454.26,0.00019162,2]
[377952178,1754626257482,-1596.54,0.00019162,2]
[377952179,1754626257491,-418.08,0.00019162,2]
[377952180,1754626257501,-1259.82,0.00019162,2]
[377952181,1754626257510,-1257.59,0.00019162,2]
[377952182,1754626257520,-488.88,0.00019162,2]
[377952183,1754626257529,-989.14,0.00019162,2]
[377952184,1754626257539,-3833.66,0.00019162,2]
[377952185,1754626257548,-635.85,0.00019162,2]
[377952186,1754626257558,-977.69,0.00019162,2]
[377952187,1754626257567,-535.2,0.00019162,2]
[377952188,1754626257578,-1420.59,0.00019162,2]
[377952189,1754626257586,-688.54,0.00019162,2]
[377952190,1754626257596,-1470.71,0.00019162,2]
[377952191,1754626257605,-2102.07,0.00019162,2]
[377952192,1754626257614,-1166.94,0.00019162,2]
[377952193,1754626257624,-1675.89,0.00019162,2]
[377952194,1754626257634,-400.0,0.00019162,2]
[377952195,1754626257643,-463.67,0.00019162,2]
[377952196,1754626257653,-7230.19,0.00019162,2]
[377952197,1754626257662,-1510.38,0.00019163,2]
[377952198,1754626257672,-1874.12,0.00019163,2]
[377952199,1754626257682,-1171.75,0.00019163,2]
[377952200,1754626257691,-1791.72,0.00019163,2]
[377952201,1754626257700,-500.0,0.00019165,2]
[377952202,1754626257710,-556.51,0.00019173,2]
[377952203,1754626257719,-400.0,0.00019173,2]
[377952204,1754626257729,-400.0,0.00019173,2]
[377952205,1754626257738,-500.88,0.00019173,2]
[377952206,1754626257747,-405.098288,0.00019173,2]
[377952207,1754626257757,-465.355861,0.00019173,2]
[377952208,1754626257766,-5718.06,0.00019173,2]